Cogmind - Beta 15 @@@ ROGUE MODE // 2025.09.20 @ 21:57:54 Player: chebyrekser Result: Escaped! Performance ------------- Evolutions (9) 4500 Regions Visited (21) 4200 Robots Destroyed (617) 3085 Value Destroyed (29530) 29530 Prototype IDs (23) 460 Alien Tech Used (0) 0 Bonus (20440) 20440 TOTAL SCORE: 62215 Bonus ------- Triggered High Security 1000 High Alert Combat Kills 12294 Follower Combat Kills 1424 Entered Garrisons 1000 Used RIF Installer 2500 Win 3000 Friendly Fire -778 Cogmind --------- Core Integrity 1329/1600 Matter 264/300 Energy 200/220 System Corruption 21% Temperature Cool (14) Movement Treading (155) Location To Epsilon Eridani Parts ------- > --- POWER (3) -------- Light Antimatter Reactor Micro Antimatter Reactor > --- PROPULSION (7) --- Improved Heavy Treads Biometal Heavy Treads Advanced Heavy Siege Treads > --- UTILITY (12) ----- Huge Storage Unit Enhanced Optical Array Advanced Terrain Scan Processor Core Analyzer Core Analyzer Hacking Suite > --- WEAPON (3) ------- Enhanced Quantum Rifle > --- INVENTORY (25) --- Light Antimatter Reactor Reinforced Antimatter Reactor Quantum Reactor Light Quantum Reactor Advanced Heavy Siege Treads Compact Matter Pod (150) Experimental Sensor Array Advanced Force Field Hacking Suite PSU Rigger Gamma Rifle Enhanced Quantum Rifle Compact HERF Cannon Enhanced Nova Cannon KE Penetrator Compact Linear Accelerator Compact Tesla Bomb Launcher Micro-nuke Launcher Advanced Remote Datajack Plasma Cutter Peak State ------------ > --- POWER ------------ Reinforced Fission Core Light Quantum Reactor Light Quantum Reactor > --- PROPULSION ------- Armored Heavy Treads Advanced Heavy Siege Treads Myomer Leg Wheel > --- UTILITY ---------- Advanced Heat Sink Huge Storage Unit Enhanced Optical Array Experimental Sensor Array Core Analyzer Centrium Heavy Armor Plating Hacking Suite Experimental System Shield Relay Coupler [NC] Advanced Component Analysis Suite > --- WEAPON ----------- HERF Cannon Nova Cannon Compact Tesla Bomb Launcher > --- INVENTORY -------- Particle Reactor Medium Treads Advanced Heavy Siege Treads Myomer Leg Compact Matter Pod Compact Matter Pod Improved Transmission Jammer Advanced Force Field Hacking Suite High-powered Tractor Beam PSU Rigger Gamma Rifle Cooled Plasma Rifle HERF Cannon Compact HERF Cannon Nova Cannon Advanced KE Penetrator Advanced KE Penetrator Compact Tesla Bomb Launcher Micro-nuke Launcher Advanced Remote Datajack Plasma Cutter [Rating: 166] Favorites ----------- Power Cooled Ion Engine Engine Cooled Ion Engine Power Core Neutrino Core Reactor Light Quantum Reactor Propulsion Improved Treads Treads Improved Treads Leg Enhanced Flexi-carbon Leg Wheel Wheel Utility Huge Storage Unit Device Seismic Detector Storage Huge Storage Unit Processor Core Analyzer Hackware Relay Coupler [NC] Protection Improved Medium Armor Plating Weapon Improved EM Pulse Cannon Energy Gun Precision Beam Rifle Energy Cannon Improved EM Pulse Cannon Ballistic Gun Heavy Assault Rifle Ballistic Cannon Antimatter Cannon Launcher Compact Tesla Bomb Launcher Special Weapon Remote Datajack Impact Weapon Flail Slashing Weapon Makeshift Sword Build | -11 -10 -10 -9 -9 -9 -8 -8 -8 -7 -7 -7 -7 -6 -6 -6 -5 -5 -4 -3 -2 -1 ------- Run | Yrd Mat Min Mat Min Exi Min Mat Gar Fac Gar Fac Gar Fac Gar Fac Fac Gar Fac Res Res Acc Slots Evolved 18 | . . . 2 . . . 2 . 2 . . . 2 . . 2 . 2 2 2 2 Power 2 | . . . . . . . . . . . . . . . . 1 . . . 1 . Propulsion 5 | . . . 1 . . . 1 . 1 . . . . . . 1 . . . . 1 Utility 10 | . . . 1 . . . . . 1 . . . 2 . . . . 2 2 1 1 Weapon 1 | . . . . . . . 1 . . . . . . . . . . . . . . Parts Attached 292 | 8 6 2 36 3 5 . 16 7 1 8 21 11 18 10 9 11 16 26 24 24 30 Power 30 | 1 . . 4 . . . . . . 1 1 . 3 1 1 1 2 4 4 3 4 Engine 9 | 1 . . 4 . . . . . . 1 1 . . . 1 . 1 . . . . Core 7 | . . . . . . . . . . . . . 3 . . 1 . 2 1 . . Reactor 14 | . . . . . . . . . . . . . . 1 . . 1 2 3 3 4 Propulsion 82 | 2 1 . 17 . . . 7 2 . 2 9 5 . 3 1 4 3 6 4 9 7 Treads 51 | 1 . . 13 . . . 7 2 . 2 2 4 . 2 1 2 3 2 3 2 5 Leg 10 | . . . . . . . . . . . . . . . . 2 . 1 1 5 1 Wheel 21 | 1 1 . 4 . . . . . . . 7 1 . 1 . . . 3 . 2 1 Hover . | . . . . . . . . . . . . . . . . . . . . . . Flight . | . . . . . . . . . . . . . . . . . . . . . . Utility 94 | 2 3 . 7 1 3 . 1 1 1 4 8 3 8 2 4 2 9 10 7 4 14 Device 35 | 1 1 . 4 . 3 . 1 . . 3 3 1 3 . 1 . . 4 2 1 7 Storage 7 | 1 2 . 1 . . . . . . 1 1 . . . 1 . . . . . . Processor 10 | . . . . . . . . . 1 . 1 . 2 . . . . 1 1 1 3 Hackware 15 | . . . . . . . . . . . . 1 1 . 1 1 6 3 2 . . Protection 27 | . . . 2 1 . . . 1 . . 3 1 2 2 1 1 3 2 2 2 4 Artifact . | . . . . . . . . . . . . . . . . . . . . . . Weapon 86 | 3 2 2 8 2 2 . 8 4 . 1 3 3 7 4 3 4 2 6 9 8 5 Energy Gun 22 | 1 . 1 2 1 . . 2 . . . . 1 1 3 1 2 . 2 1 4 . Energy Cannon 15 | . . . 1 . . . . 2 . 1 1 . 1 1 . . 1 1 2 1 3 Ballistic Gun 16 | 2 1 1 3 . . . 2 . . . 1 . 1 . . . . 2 2 1 . Ballistic Cannon 7 | . . . . . . . 1 . . . . . 1 . 1 1 . . . 1 2 Launcher 15 | . . . 1 . . . 3 1 . . 1 1 3 . . . 1 1 2 1 . Special Weapon 7 | . 1 . . . . . . 1 . . . 1 . . 1 1 . . 2 . . Impact Weapon 1 | . . . 1 . . . . . . . . . . . . . . . . . . Slashing Weapon 3 | . . . . 1 2 . . . . . . . . . . . . . . . . Piercing Weapon . | . . . . . . . . . . . . . . . . . . . . . . Special Melee Weapon . | . . . . . . . . . . . . . . . . . . . . . . Unidentified Prototypes 18 | . . . 4 . 1 . 5 . . 1 . . 3 . . 1 . 1 1 1 . Corrupted Parts 12 | . . . . . . . . . . . . 4 . . . . . . 2 5 1 System Corruption 81 | . . . . . . . . . . . . 29 . . . . . . 16 26 10 Parts Lost 110 | . . . 5 . . . 2 1 . . 6 3 7 2 4 5 3 14 11 28 19 Power 17 | . . . 1 . . . . . . . 1 . 1 . 1 . 1 2 2 5 3 Propulsion 36 | . . . 2 . . . 1 1 . . 5 2 1 1 . 2 . 5 5 8 3 Utility 34 | . . . 1 . . . . . . . . . 3 1 1 . 2 3 4 8 11 Weapon 23 | . . . 1 . . . 1 . . . . 1 2 . 2 3 . 4 . 7 2 Highest Loss Streak 15 | . . . 1 . . . 1 1 . . 4 1 2 1 3 3 2 7 2 15 4 To Critical Strikes 2 | . . . . . . . . . . . 1 . . . . . . 1 . . . Average Backups 19 | 3 12 14 13 14 14 15 14 15 15 17 24 22 22 22 21 20 22 22 23 23 19 Power 1 | . 2 2 1 2 2 2 2 2 2 1 1 2 1 . 1 1 . 2 2 1 1 Propulsion 1 | 1 2 2 1 1 1 1 1 1 1 1 3 1 2 2 2 2 2 1 . 2 1 Utility 8 | . 5 6 5 6 6 7 7 7 7 9 11 11 8 8 8 9 10 8 8 7 5 Weapon 6 | 1 2 3 4 4 4 4 3 4 4 4 5 6 9 9 6 5 7 8 9 9 8 Tool/Special . | . . . . . . . . . . . . . . . . . . . . . . Unused Backups 74 | . 5 3 4 . 1 . 4 . . 9 5 10 6 4 . . 4 . 5 1 13 Power 20 | . 2 . 2 . . . . . . 1 . 5 3 2 . . . . 1 . 4 Propulsion 5 | . . . . . . . . . . . . . . . . . . . . . 5 Utility 33 | . 3 3 . . 1 . 3 . . 6 4 4 2 2 . . 2 . . 1 2 Weapon 14 | . . . 2 . . . 1 . . 2 . 1 1 . . . 2 . 3 . 2 Tool/Special 2 | . . . . . . . . . . . 1 . . . . . . . 1 . . Average Slot Usage (%) 88 | . 100 100 98 100 100 100 98 100 90 95 90 81 82 76 89 82 85 92 86 75 65 Engine 5 | . 14 14 11 11 11 11 9 9 7 7 6 6 2 . 1 5 2 . . . . Core 1 | . . . . . . . . . . . . . 3 6 4 . 4 2 1 3 . Reactor 1 | . . . . . . . . . . . . . . . . . 2 6 7 5 8 Treads 20 | . 14 14 22 33 33 33 35 36 30 36 22 12 19 14 18 14 18 18 10 7 8 Leg 1 | . . . . . . . . . . . . . . . . 3 5 5 6 4 5 Wheel 3 | . 14 14 9 . . . . . . . 9 9 . 2 6 4 . 2 1 2 1 Device 10 | . 14 14 20 21 22 21 14 11 14 10 12 11 8 3 9 2 . 6 9 11 5 Storage 7 | . 14 14 11 11 11 11 9 9 7 7 7 7 6 6 6 5 5 5 4 4 4 Processor 8 | . . . . . . . . . 6 4 3 7 13 20 20 17 17 19 9 7 15 Hackware 3 | . . . . . . . . . . . . 1 4 . . 4 3 4 13 12 4 Protection 3 | . . . 1 . . . 3 6 . 3 3 1 4 6 1 2 4 4 3 3 5 Energy Gun 5 | . 14 14 7 10 11 11 8 9 7 6 . 1 5 . 1 4 4 4 4 1 2 Energy Cannon 4 | . . . . . . . . 10 15 11 14 9 . 6 6 1 1 1 3 4 2 Ballistic Gun 3 | . 9 9 10 9 2 11 9 4 . . 4 . . 2 . . . 2 3 . . Ballistic Cannon 1 | . . . . . . . 3 . . . . . 4 1 1 3 4 4 . . 1 Special Weapon 1 | . 4 4 . . . . . . . . . 1 4 . 1 . 2 1 . . . Slashing Weapon 1 | . . . . . 8 . 4 1 . 2 2 5 . 1 6 4 . . . . . Peak Build Rating 166 | 8 9 11 24 24 29 24 41 40 42 48 68 64 87 87 85 102 102 113 152 166 166 Average Rating 67 | 5 8 9 19 22 23 23 34 34 41 39 54 53 79 74 75 87 93 100 134 148 131 On Entrance 50 | . 8 9 11 22 22 24 23 33 35 42 48 61 64 87 71 85 89 90 102 125 63 Naked Turns . | . . . . . . . . . . . . . . . . . . . . . . Heaviest Build 193 | 15 30 31 43 43 40 43 50 65 46 188 193 119 132 138 116 115 134 153 161 185 153 Greatest Support 230 | 20 20 10 69 69 69 69 89 86 83 103 103 170 170 150 145 124 124 145 123 160 230 Greatest Overweight (x) 15 | . 2 3 4 . . . . . . 1 11 4 . 9 9 9 1 13 2 15 3 Average Overweight (x) 1 | . 1 2 . . . . . . . . 3 1 . . 5 6 . 2 1 1 . Largest Inventory Capacity 30 | 8 15 15 15 15 15 15 15 15 15 30 30 25 25 25 25 25 25 25 25 25 25 Average Capacity 21 | 6 14 15 15 15 15 15 15 15 15 20 26 25 25 25 25 25 25 25 25 25 25 Most Carried 30 | 8 15 15 15 15 15 15 15 15 15 30 30 25 25 25 25 23 25 25 25 25 25 Average Carried 20 | 3 12 14 14 14 14 15 14 15 15 18 26 24 24 24 23 21 23 23 24 24 20 Final Capacity 30 | 8 15 15 15 15 15 15 15 15 15 30 25 25 25 25 25 25 25 25 25 25 25 Final Carried 30 | 8 15 15 15 14 15 15 15 15 15 30 25 25 24 25 17 23 25 25 25 15 21 Class Distribution -------------------- 24% | Mutant 21% | Scavenger-Mutant 13% | Tank 8% | Hacker-Tank 7% | Scavenger-Tank 3% | Scavenger-Skirmisher Dominant Class ---------------- Mutant | -10/Materials Mutant | -10/Mines Scavenger-Mutant | -9/Materials Mutant | -9/Mines Mutant | -9/Exiles Mutant | -8/Mines Mutant | -8/Materials Tank | -8/Garrison Gunner | -7/Factory Scavenger-Gunner | -7/Garrison Tank | -7/Factory Mutant | -7/Garrison Scavenger-Tank | -6/Factory Scavenger-Mutant | -6/Garrison Scavenger-Mutant | -6/Factory Mutant | -5/Factory Bothacker-Tank | -5/Garrison Scavenger-Skirmisher | -4/Factory Hacker-Tank | -3/Research Hacker-Mutant | -2/Research Mutant | -1/Access Resources | -11 -10 -10 -9 -9 -9 -8 -8 -8 -7 -7 -7 -7 -6 -6 -6 -5 -5 -4 -3 -2 -1 ----------- Run | Yrd Mat Min Mat Min Exi Min Mat Gar Fac Gar Fac Gar Fac Gar Fac Fac Gar Fac Res Res Acc Matter Collected 16260 | 292 366 121 1236 342 133 39 1018 244 . 472 755 822 1779 981 208 410 923 1302 1990 1444 1383 Remotely 1819 | . . . . . . . . . . . . . . . . . . . 754 518 547 Salvage Created 34741 | 155 510 70 1978 429 281 50 1281 775 . 1322 1937 1287 2394 1715 639 684 747 1938 4064 6474 6011 Parts 1525 | 7 30 3 121 33 8 4 73 43 . 53 130 60 99 72 22 39 26 67 149 245 241 Haulers Intercepted 20 | . 2 . 5 . . . 4 . . . 1 . 4 . . . . 1 1 1 1 Recyclers Shooed 37 | 1 3 . 3 . . . . . . . 1 . 4 . . 1 . 6 5 11 2 Parts Field Recycled . | . . . . . . . . . . . . . . . . . . . . . . Retrieved Matter . | . . . . . . . . . . . . . . . . . . . . . . Parts Self-Destructed . | . . . . . . . . . . . . . . . . . . . . . . Prevented . | . . . . . . . . . . . . . . . . . . . . . . Kills | -11 -10 -10 -9 -9 -9 -8 -8 -8 -7 -7 -7 -7 -6 -6 -6 -5 -5 -4 -3 -2 -1 ------- Run | Yrd Mat Min Mat Min Exi Min Mat Gar Fac Gar Fac Gar Fac Gar Fac Fac Gar Fac Res Res Acc Combat Hostiles Destroyed 446 | . 7 1 34 20 . 1 18 18 . 10 24 16 31 27 16 9 14 33 49 55 63 Melee 1 | . . . . . . . . . . . . 1 . . . . . . . . . Guns 106 | . 7 1 23 3 . 1 9 1 . 1 2 . 6 5 4 5 7 14 14 3 . Cannons 90 | . . . 4 . . . 8 4 . 4 11 8 8 8 2 4 2 10 6 3 8 AOE 136 | . . . 7 17 . . 1 11 . 3 7 7 7 10 9 . 4 8 13 13 19 Classes Destroyed 21 | 2 6 1 3 1 . . 2 1 . 1 2 . . . 1 . . . . . 1 Worker 33 | . 1 . 4 . . . 3 . . . 2 . 8 . . . . 3 3 7 2 Builder 36 | . . . 4 . . . 1 . . . 5 . 5 . 2 . . 2 1 7 9 Tunneler 16 | 3 1 . . 2 . . 2 . . . 2 . 1 . . 1 . 1 . 1 2 Hauler 20 | . 2 . 5 . . . 4 . . . 1 . 4 . . . . 1 1 1 1 Recycler 33 | 1 1 1 3 . . . 3 . . . 3 . 4 . . 1 . 3 3 8 2 Mechanic 5 | . . . . . . . . . . . 1 . . . . . . 1 . 1 2 Operator 8 | . 2 . 1 . . . 1 . . . 2 . 2 . . . . . . . . Watcher 16 | . 2 . 5 . . . 4 . . . 2 . . . . . . 1 . 2 . Swarmer 56 | . 3 . 4 10 . . 4 4 . . . 8 . 10 . . 1 . 4 . 8 Cutter 2 | . . . . . . . . 2 . . . . . . . . . . . . . Saboteur 7 | . . . . . . . . . . . . . . . 1 . . 1 2 1 2 Grunt 190 | . 4 . 22 9 . 1 8 7 . 7 3 4 17 7 11 . 7 13 21 25 24 Brawler 18 | . . . 1 . . . . 1 . . . . 3 . 1 . 5 1 2 1 3 Duelist 15 | . . . . . . . 1 1 . . 1 . . . 1 . 2 2 3 1 3 Protector 6 | . . . . 1 . . . . . . 2 . 1 . 1 . . . 1 . . Sentry 46 | . . . 7 . . . 4 3 . 2 2 . 4 4 1 1 2 3 2 8 3 Specialist 7 | . . . . . . . . . . 1 4 . . . . . . . . . 2 Hunter 43 | . . . . . . . 1 . . . 4 . 1 3 . 6 . 1 . 14 13 Programmer 57 | . . . . . . . . . . . 8 4 5 3 . 2 . 12 14 5 4 Heavy 1 | . . . . . . . . . . . . . . . . . . . . . 1 Assembled 1 | . . 1 . . . . . . . . . . . . . . . . . . . Savage 1 | . . . . . . . . . . . . . . 1 . . . . . . . Butcher 1 | . . . . . . . . . . . . . . 1 . . . . . . . Best Kill Streak 19 | 2 3 1 6 5 . 1 4 4 . 2 12 6 9 4 14 3 4 10 10 16 19 Combat Bots Only 13 | . 3 1 4 5 . 1 3 4 . 2 10 6 5 4 13 3 4 6 9 10 13 Max Kills in Single Turn 8 | 1 1 1 3 5 . 1 1 2 . 1 4 3 4 2 8 1 1 4 4 5 4 Gunslinging . | . . . . . . . . . . . . . . . . . . . . . . Exploded 7 | . . . 3 5 . . 1 2 . 1 4 3 4 2 7 . 1 2 4 2 3 Melee 1 | . . . . . . . . . . . . 1 . . . . . . . . . Uniques/NPCs Destroyed . | . . . . . . . . . . . . . . . . . . . . . . Combat | -11 -10 -10 -9 -9 -9 -8 -8 -8 -7 -7 -7 -7 -6 -6 -6 -5 -5 -4 -3 -2 -1 -------- Run | Yrd Mat Min Mat Min Exi Min Mat Gar Fac Gar Fac Gar Fac Gar Fac Fac Gar Fac Res Res Acc Hostile Shots Fired 2375 | . 33 5 136 31 . 1 61 33 . 64 228 98 269 137 79 92 72 208 253 338 237 Missed 743 | . 7 . 41 11 . 1 12 14 . 30 81 35 101 37 25 21 16 59 75 97 80 Hits 1632 | . 26 5 95 20 . . 49 19 . 34 147 63 168 100 54 71 56 149 178 241 157 Melee 50 | . . . . . . . 2 1 . . 8 . 11 . 2 . 1 6 16 . 3 Projectile 1582 | . 26 5 95 20 . . 47 18 . 34 139 63 157 100 52 71 55 143 162 241 154 AOE 2 | . . . . . . . . 1 . . . . . . . . . . . . 1 Critical Strikes 68 | . 1 . 2 . . . 1 1 . . 3 2 10 1 2 2 2 6 17 13 5 Part Disruptions 3 | . . . . . . . . . . . 1 1 . . . . . . . . 1 Damage Taken 33012 | . 300 48 1225 282 . . 780 611 . 273 2034 999 2419 1187 1283 1358 1175 3189 4319 6963 4567 Core 2629 | . 33 8 146 54 . . 21 40 . . 204 62 140 46 84 169 133 354 184 680 271 Absorbed by Shields 119 | . . . . . . . . . . . . . . . . . . 78 41 . . Reduced by Siege Mode 975 | . . . . . . . . . . . . . 38 56 55 25 2 77 119 166 437 Ignored by Resistances 302 | . . . . . . . . 17 . 46 51 . 42 146 . . . . . . . Regen/Repaired (Parts) 832 | . . . 96 . . . 296 . . . 47 . . . . . . 393 . . . Core Remaining (%) 73 | 100 . 83 . . . 50 . 88 . . . 62 . . 68 . 69 69 85 53 83 Volleys Fired 1482 | 13 62 15 117 18 2 4 72 29 . 33 127 70 176 56 17 32 90 115 138 161 135 Largest 3 | 2 2 2 2 2 1 2 3 2 . 2 3 2 2 2 2 2 2 3 3 3 3 Hottest 185 | 70 100 100 91 88 23 88 123 138 . 138 184 138 119 150 150 146 159 179 185 172 185 Shots Fired 2365 | 17 114 22 217 28 3 8 190 41 . 51 177 92 265 95 30 49 110 231 267 195 163 Gun 1116 | 17 104 14 188 20 3 8 126 1 . 15 34 21 110 20 8 22 48 113 174 52 18 Cannon 891 | . . . 19 . . . 61 27 . 26 133 62 122 49 16 27 35 97 57 76 84 Launcher 303 | . . . 10 8 . . 3 13 . 10 10 9 15 26 5 . 18 14 34 67 61 Special 55 | . 10 8 . . . . . . . . . . 18 . 1 . 9 7 2 . . Kinetic 794 | 4 52 7 102 10 2 4 130 1 . 3 34 8 133 35 9 16 26 102 77 14 25 Thermal 875 | 13 62 15 105 10 1 4 57 . . 12 83 8 79 1 8 4 31 108 144 76 54 Explosive 55 | . . . 10 8 . . . . . . . . 1 . 1 . 18 14 1 2 . Electromagnetic 604 | . . . . . . . 3 40 . 36 60 76 34 59 11 29 26 . 43 103 84 Robot Hit Streak 29 | 5 9 6 16 12 1 5 14 11 . 19 10 15 14 9 16 18 26 29 15 10 13 Robot Miss Streak 8 | 1 3 2 4 5 4 2 6 2 . 1 3 3 8 2 1 1 2 3 4 7 5 Penetration Max 1 | . . . . . . . . . . . . . . 1 . . . 1 1 . . Secondary Targets 9 | . 2 . 6 . . . . . . . . . . . . . . . 1 . . Max Gunslinging Chain 1 | . 1 . 1 . . . . . . . . . . . . . . . 1 . . Shots Hit Robots 1422 | 12 67 10 137 16 15 7 123 25 . 42 89 57 172 60 26 32 70 153 153 76 80 Core Hits 1094 | 3 27 3 74 43 2 5 61 24 . 25 67 38 129 52 50 21 48 89 99 119 115 Critical Kills 9 | . . . . . . . . . . . 1 . . . . . . 2 6 . . Critical Parts Destroyed 9 | . . . . . . . . . . . . . . 1 . . . . 8 . . Critical Strikes 82 | 3 2 1 9 . . . 6 . . 1 2 1 14 5 2 1 2 9 21 2 1 Burn 36 | 3 2 1 9 . . . 4 . . 1 . . 8 . . . . 1 7 . . Meltdown 4 | . . . . . . . . . . . 1 . . . . . . 2 1 . . Destroy 14 | . . . . . . . . . . . . . . 1 . . . . 13 . . Blast 17 | . . . . . . . 2 . . . . . 4 . 2 . 2 6 . . 1 Corrupt 8 | . . . . . . . . . . . 1 . 2 2 . 1 . . . 2 . Sever 3 | . . . . . . . . . . . . 1 . 2 . . . . . . . Melee Attacks 143 | . . . 23 1 14 . 16 4 . 22 3 21 8 23 2 6 . . . . . Impact 23 | . . . 23 . . . . . . . . . . . . . . . . . . Slashing 120 | . . . . 1 14 . 16 4 . 22 3 21 8 23 2 6 . . . . . Piercing . | . . . . . . . . . . . . . . . . . . . . . . Sneak Attacks 18 | . . . 1 . . . 6 . . . 2 . . 9 . . . . . . . Combat Hostiles . | . . . . . . . . . . . . . . . . . . . . . . Follow-up Attacks . | . . . . . . . . . . . . . . . . . . . . . . Damage Inflicted 71731 | 150 889 159 3313 1116 1051 114 2743 1098 . 2306 4309 2326 6783 3240 2374 1130 3395 6958 7875 10869 9533 Guns 15957 | 150 865 135 2030 217 15 114 1428 19 . 111 344 321 1753 287 199 540 793 2182 3079 1026 349 Cannons 16813 | . . . 270 . . . 659 563 . 607 2345 931 2449 908 457 542 821 2271 1128 823 2039 Explosions 34381 | . . . 914 899 . . 184 516 . 436 1478 364 2581 1141 1718 33 1781 2505 3666 9020 7145 Melee 4515 | . . . 99 . 1036 . 472 . . 1152 142 710 . 904 . . . . . . . Ramming 17 | . . . . . . . . . . . . . . . . 15 . . 2 . . Kinetic 12513 | 27 384 68 1048 75 15 47 1288 19 . 59 344 77 2618 632 321 210 531 2083 1511 233 923 Thermal 15730 | 123 505 91 1252 142 . 67 799 135 . 65 1731 311 1404 84 322 171 589 2370 2802 1428 1339 Explosive 10054 | . . . 914 899 . . . . . . . . 802 . 1187 . 1710 2505 402 1635 . Electromagnetic 28902 | . . . . . . . 184 944 . 1030 2092 1228 1959 1620 544 734 565 . 3158 7573 7271 Impact 99 | . . . 99 . . . . . . . . . . . . . . . . . . Slashing 4416 | . . . . . 1036 . 472 . . 1152 142 710 . 904 . . . . . . . Piercing . | . . . . . . . . . . . . . . . . . . . . . . Highest Corruption 44 | . 1 1 3 3 3 . . . . . 11 44 6 8 8 3 3 7 38 35 21 Average Corruption 7 | . 1 1 1 3 2 . . . . . 5 15 3 7 8 1 3 3 20 10 10 Corruption Purged 3 | . . . . . 3 . . . . . . . . . . . . . . . . Corruption Blocked . | . . . . . . . . . . . . . . . . . . . . . . Effects 492 | . 6 3 5 17 13 . . . . . 40 93 30 53 16 . 37 26 98 24 31 Message Errors 113 | . 1 1 1 5 3 . . . . . 11 23 7 16 2 . 8 7 17 5 6 Matter Fused 119 | . 1 . . 4 4 . . . . . 11 26 11 12 2 . 9 6 26 1 6 Heat Flow Errors 63 | . 1 . . 3 1 . . . . . 7 11 3 7 1 . 7 4 10 5 3 Energy Discharges 58 | . 1 1 3 2 3 . . . . . 4 12 4 4 4 . 2 2 12 3 1 Parts Rejected 5 | . . . . . . . . . . . . 1 . . . . 1 . 3 . . Parts Fused 5 | . . . . . . . . . . . . 1 . 1 . . 1 1 1 . . Data Loss (minor) 51 | . 2 1 . 2 1 . . . . . 2 9 2 5 2 . 4 2 11 2 6 Data Loss (major) 24 | . . . 1 1 . . . . . . 1 6 1 2 2 . 2 . 2 2 4 Misfires 22 | . . . . . 1 . . . . . 3 2 1 4 2 . 1 1 5 1 1 Alerts 8 | . . . . . . . . . . . . . 1 1 . . 2 1 1 1 1 Misdirections 2 | . . . . . . . . . . . . . . . . . . . . 1 1 Weapon Failures 22 | . . . . . . . . . . . 1 2 . 1 1 . . 2 10 3 2 Overload Shots 1 | . . . . . . . . . . . . . . . . . . . 1 . . Effects 1 | . . . . . . . . . . . . . . . . . . . 1 . . Energy Bleed 1 | . . . . . . . . . . . . . . . . . . . 1 . . Overflow Damage 1695 | . . . 13 . 233 . 179 4 . 15 169 29 166 76 51 3 68 164 108 219 198 Projectiles 613 | . . . . . . . 19 . . 15 106 . 153 16 6 . 20 107 92 12 67 Explosions 623 | . . . 13 . . . 28 4 . . 37 5 13 16 45 3 48 57 16 207 131 Melee 459 | . . . . . 233 . 132 . . . 26 24 . 44 . . . . . . . Knockbacks 43 | . . . . . . . 5 . . . . . 9 3 5 1 4 12 . . 4 Impact . | . . . . . . . . . . . . . . . . . . . . . . Kinetic 42 | . . . . . . . 5 . . . . . 9 2 5 1 4 12 . . 4 Secondary 1 | . . . . . . . . . . . . . . 1 . . . . . . . Self-Inflicted Damage 1818 | . . . 25 33 . . 68 42 . 20 . 51 161 47 363 . 15 26 120 287 560 Shots 91 | . . . 1 1 . . 1 2 . 1 . 4 10 3 10 . 1 2 9 18 28 Rammed 2 | . . . . . . . . . . . . . . . . 1 . . 1 . . Targets Rammed 2 | . . . . . . . . . . . . . . . . 1 . . 1 . . Kicked . | . . . . . . . . . . . . . . . . . . . . . . Crushed . | . . . . . . . . . . . . . . . . . . . . . . Highest Temperature 553 | 90 232 67 9 278 203 . 173 78 . 24 244 252 406 288 197 173 333 324 341 553 491 Average Temperature 74 | 33 37 22 6 114 86 . 48 29 . 8 50 58 79 80 91 87 101 68 70 86 99 Received Heat Transfer 4784 | . 141 60 612 99 . . 189 108 . 84 222 66 655 210 363 9 336 474 562 396 198 Effects 19 | . . . . 3 . . . . . . . . . . . . 3 . . 6 7 Shutdowns 6 | . . . . . . . . . . . . . . . . . 1 . . 3 2 Energy Bleed 3 | . . . . . . . . . . . . . . . . . 2 . . 1 . Interference 3 | . . . . 3 . . . . . . . . . . . . . . . . . Matter Decay 1 | . . . . . . . . . . . . . . . . . . . . . 1 Damage (minor) 1 | . . . . . . . . . . . . . . . . . . . . 1 . Damage (major) 4 | . . . . . . . . . . . . . . . . . . . . . 4 Damage (core) 1 | . . . . . . . . . . . . . . . . . . . . 1 . Siege Activations 51 | . . . . . . . . . . . 1 1 6 6 1 4 1 3 12 8 8 Total Turns 952 | . . . . . . . . . . . 4 2 54 131 32 40 10 62 327 139 151 Longest Duration 144 | . . . . . . . . . . . 4 2 14 58 32 19 10 31 144 44 51 Martial Activations . | . . . . . . . . . . . . . . . . . . . . . . Shielding Activations . | . . . . . . . . . . . . . . . . . . . . . . Robots Disrupted 3 | . . . . . . . . . . . . . . . . . . . 1 . 2 Combat Hostiles 3 | . . . . . . . . . . . . . . . . . . . 1 . 2 Robots Corrupted 122 | . . . . . . . . 2 . 4 4 5 11 5 1 . 2 . 15 37 36 Combat Hostiles 111 | . . . . . . . . 2 . 2 4 . 10 4 1 . 1 . 15 36 36 Parts Fried 244 | . . . . . . . 1 8 . 9 14 11 15 8 4 8 1 . 36 57 72 Impact Corruptions . | . . . . . . . . . . . . . . . . . . . . . . Robots Melted 6 | 1 . . . . . . . . . . 1 . . . . . . 3 1 . . Combat Hostiles 2 | . . . . . . . . . . . . . . . . . . 1 1 . . Parts Melted 47 | 3 1 . 6 . . . . . . 1 2 . 1 . . . 1 9 19 2 2 Heat Transferred 27178 | 592 1641 309 3367 185 . 85 1790 200 . 235 1832 322 3951 100 359 198 716 3854 4721 1431 1290 Parts Sabotaged 3 | . . . . . . . . . . . . . . . 3 . . . . . . Parts Stolen . | . . . . . . . . . . . . . . . . . . . . . . Parts Stripped . | . . . . . . . . . . . . . . . . . . . . . . Power Chain Reactions 37 | . . . . . . . . 4 . 1 9 1 . 2 . 1 1 . 7 4 7 Alert | -11 -10 -10 -9 -9 -9 -8 -8 -8 -7 -7 -7 -7 -6 -6 -6 -5 -5 -4 -3 -2 -1 ------- Run | Yrd Mat Min Mat Min Exi Min Mat Gar Fac Gar Fac Gar Fac Gar Fac Fac Gar Fac Res Res Acc Maximum Alert Level 5 | . . . 2 1 . . 1 2 1 3 2 4 3 5 4 2 4 4 4 5 5 Low Security (%) 22 | 100 100 100 23 59 . 100 77 28 . 12 36 . . . . . 4 . . . . Level 1 15 | . . . 52 40 . . 22 18 100 18 36 1 . . . 96 13 . . . . Level 2 25 | . . . 24 . . . . 53 . 53 27 31 72 3 . 3 12 39 51 . . Level 3 16 | . . . . . . . . . . 15 . 21 27 23 97 . 36 34 13 69 . Level 4 16 | . . . . . . . . . . . . 45 . 43 2 . 33 25 35 17 74 Level 5 1 | . . . . . . . . . . . . . . 30 . . . . . 2 3 High Security 1 | . . . . . . . . . . . . . . . . . . . . 9 21 Max Security . | . . . . . . . . . . . . . . . . . . . . . . Peak Influence 2784 | 10 74 117 537 319 . 43 249 537 281 777 574 1527 1001 1721 1107 530 1239 1433 1358 2184 2784 Initial 1274 | . . . 14 148 . . . 57 281 147 407 399 801 690 903 530 181 650 744 762 1274 Average 626 | 1 22 30 310 191 . 4 139 343 247 490 307 996 613 1311 862 300 878 854 818 1042 1580 Influence Increases 17886 | 20 356 165 1356 587 18 95 694 490 . 630 897 1158 1140 1051 482 285 1128 1644 1390 2164 2136 Destroy 0b10 Robot/C 9640 | . 140 120 740 400 . 60 360 360 . 200 440 500 640 580 300 180 480 820 960 1100 1260 Destroy 0b10 Robot/NC 960 | 20 45 10 110 20 15 . 90 . . 30 100 30 125 15 15 10 . 55 45 135 90 Destroy Leader 1670 | . 38 20 200 50 . 10 96 20 . . 146 40 168 40 50 50 20 144 162 206 210 Allied During Kill 374 | . . 13 22 51 3 10 1 . . . . 44 8 8 . . 71 143 . . . Successful Hack 187 | . 21 . 30 . . . 8 . . 14 53 . 5 . . 7 14 14 . . 21 Select Force Hacks 90 | . 60 . 30 . . . . . . . . . . . . . . . . . . Disable Machine 735 | . . . . . . . 60 . . . 90 30 75 15 60 . 30 90 30 150 105 Anti-Garrison Action 1200 | . . . . . . . . 50 . 250 . 350 . 250 . . 300 . . . . Destroy Structure 1890 | . 7 2 104 66 . . 49 30 . 46 53 59 89 83 57 38 153 318 148 348 240 Lose Combat Pursuer 1140 | . 45 . 120 . . 15 30 30 . 90 15 105 30 60 . . 60 60 45 225 210 Influence Decreases 15112 | 20 356 128 1010 677 311 95 606 41 326 64 1104 201 1681 316 1120 1109 148 1465 1452 1396 1486 Entered New Map 6621 | . . . 23 235 293 . . 31 256 64 370 171 726 296 818 553 78 589 674 594 850 Time Decay 6426 | 20 284 108 617 422 18 62 586 . 70 . 674 . 695 . 262 356 . 616 668 522 446 Lost Part 1100 | . . . 50 . . . 20 10 . . 60 30 70 20 40 50 30 140 110 280 190 Lost Ally 293 | . . 20 20 20 . 33 . . . . . . 40 . . . 40 120 . . . Purge Threat 672 | . 72 . 300 . . . . . . . . . 150 . . 150 . . . . . Squads Dispatched 102 | . 4 . 5 2 . . 1 . . . 9 . 11 . 4 3 . 12 12 19 20 Investigation 13 | . 3 . 3 . . . 1 . . . 3 . . . . . . 1 . 1 1 Extermination 26 | . . . . . . . . . . . 5 . 5 . . 1 . 5 5 3 2 Reinforcement 28 | . 1 . 2 1 . . . . . . 1 . 3 . 2 1 . 2 1 8 6 Assault 33 | . . . . 1 . . . . . . . . 3 . 2 . . 4 6 6 11 Garrison 2 | . . . . . . . . . . . . . . . . 1 . . . 1 . Intercept . | . . . . . . . . . . . . . . . . . . . . . . Searches Triggered . | . . . . . . . . . . . . . . . . . . . . . . Construction Impeded 16 | . . . 1 1 . . . . . . 1 . 3 . 1 1 . 1 . 4 3 Haulers Reinforced 1 | . . . . . . . . . . . . . . . . . . . 1 . . Active Scanning Responses . | . . . . . . . . . . . . . . . . . . . . . . Cargo Convoy Interrupts 1 | . . . . . . . . . . . 1 . . . . . . . . . . Stealth | -11 -10 -10 -9 -9 -9 -8 -8 -8 -7 -7 -7 -7 -6 -6 -6 -5 -5 -4 -3 -2 -1 --------- Run | Yrd Mat Min Mat Min Exi Min Mat Gar Fac Gar Fac Gar Fac Gar Fac Fac Gar Fac Res Res Acc Distress Signals 19 | . . . 4 . . . 4 . . . . . 3 . . . . 1 1 . 6 Communications Jammed 47 | . . . . . . . . . . . 5 . 1 . 1 . . 2 35 3 . Distress Signals 40 | . . . . . . . . . . . . . . . 1 . . 1 35 3 . Times Spotted 677 | . 20 7 50 20 . 4 37 18 . 13 35 27 51 27 25 9 30 57 74 78 95 Peak Tracking Total 13 | . 3 3 5 5 . 3 5 4 . 4 11 10 6 4 13 3 4 7 7 11 9 Tactical Retreats 48 | . 2 . 7 . . 1 1 2 . 4 1 3 2 2 . . 4 3 3 7 6 Traps | -11 -10 -10 -9 -9 -9 -8 -8 -8 -7 -7 -7 -7 -6 -6 -6 -5 -5 -4 -3 -2 -1 ------- Run | Yrd Mat Min Mat Min Exi Min Mat Gar Fac Gar Fac Gar Fac Gar Fac Fac Gar Fac Res Res Acc Traps Triggered 42 | . 2 . 2 . . . 1 7 1 5 4 7 1 6 . . . 2 1 2 1 Indirectly 16 | . . . . . . . . 1 . 5 . 2 . 5 . . . . . 2 1 Trap Hack Attempts . | . . . . . . . . . . . . . . . . . . . . . . Triggered . | . . . . . . . . . . . . . . . . . . . . . . Disarmed . | . . . . . . . . . . . . . . . . . . . . . . Reprogrammed . | . . . . . . . . . . . . . . . . . . . . . . Reused . | . . . . . . . . . . . . . . . . . . . . . . Traps Extracted . | . . . . . . . . . . . . . . . . . . . . . . Installed . | . . . . . . . . . . . . . . . . . . . . . . Triggered . | . . . . . . . . . . . . . . . . . . . . . . Objects Rigged 7 | . . . . . . . . . . . . 7 . . . . . . . . . Exploded 5 | . . . . . . . . . . . . 5 . . . . . . . . . Machines | -11 -10 -10 -9 -9 -9 -8 -8 -8 -7 -7 -7 -7 -6 -6 -6 -5 -5 -4 -3 -2 -1 ---------- Run | Yrd Mat Min Mat Min Exi Min Mat Gar Fac Gar Fac Gar Fac Gar Fac Fac Gar Fac Res Res Acc Machines Disabled 63 | . . . . . . . 4 1 . 3 6 5 5 4 4 . 6 6 2 10 7 Max in Single Turn 5 | . . . . . . . 2 1 . 1 4 1 3 1 4 . 1 5 1 2 1 Garrison Access 5 | . . . . . . . . . . . . . 1 . . 1 . . 2 1 . Garrison Relay 12 | . . . . . . . . . . 2 . 3 . 3 . . 4 . . . . Phase Generator 2 | . . . . . . . . 1 . 1 . . . . . . . . . . . Machines Repaired . | . . . . . . . . . . . . . . . . . . . . . . Machines Dismantled 3 | . . . . . . . . 1 . 1 . . . . . . . . . . 1 Machines Sabotaged . | . . . . . . . . . . . . . . . . . . . . . . Overloaded Fab Kills . | . . . . . . . . . . . . . . . . . . . . . . Hacking | -11 -10 -10 -9 -9 -9 -8 -8 -8 -7 -7 -7 -7 -6 -6 -6 -5 -5 -4 -3 -2 -1 --------- Run | Yrd Mat Min Mat Min Exi Min Mat Gar Fac Gar Fac Gar Fac Gar Fac Fac Gar Fac Res Res Acc Machines Accessed 74 | . 9 1 15 . . . 5 3 1 1 10 2 7 1 . 5 2 5 3 2 2 Terminals 48 | . 7 . 11 . . . 3 3 . 1 7 2 3 1 . 2 2 3 2 . 1 Fabricators 5 | . . . . . . . . . . . 1 . 2 . . 1 . 1 . . . Repair Stations 5 | . . . 1 . . . 1 . . . 1 . 1 . . . . . . . 1 Recycling Units 6 | . 2 . 2 . . . . . . . . . . . . . . 1 . 1 . Scanalyzers 1 | . . . 1 . . . . . . . . . . . . . . . . . . Garrison Access 8 | . . . . . . . 1 . 1 . 1 . 1 . . 2 . . 1 1 . Total Hacks 173 | . 23 1 53 . . . 17 5 1 1 21 3 11 2 . 11 3 10 5 3 3 Successful 73 | . 9 1 20 . . . 11 1 1 1 11 . 4 . . 7 1 3 1 1 1 Failed 99 | . 14 . 32 . . . 6 4 . . 10 3 7 2 . 4 2 7 4 2 2 Catastrophic 16 | . 3 . 5 . . . 1 . . . 3 1 1 1 . . . . . . 1 Database Lockouts 1 | . . . 1 . . . . . . . . . . . . . . . . . . Manual 82 | . 19 . 28 . 1 . 9 . . . 9 . 2 . . 5 . 4 2 2 1 Terminals 123 | . 19 . 39 . . . 11 5 . 1 16 3 4 2 . 8 3 7 4 . 1 Fabricators 9 | . . . . . . . . . . . 2 . 4 . . 1 . 2 . . . Repair Stations 14 | . . . 4 . . . 4 . . . 2 . 2 . . . . . . . 2 Recycling Units 11 | . 4 . 4 . . . . . . . . . . . . . . 1 . 2 . Scanalyzers 6 | . . . 6 . . . . . . . . . . . . . . . . . . Garrison Access 9 | . . . . . . . 2 . 1 . 1 . 1 . . 2 . . 1 1 . Terminal Hacks 24 | . 4 1 7 . . . 2 1 . 1 3 . . . . 3 1 1 . . . Part Schematic 1 | . 1 . . . . . . . . . . . . . . . . . . . . Robot Analysis 3 | . 1 . 1 . . . 1 . . . . . . . . . . . . . . Open Door 1 | . . 1 . . . . . . . . . . . . . . . . . . . Branch Access Points 1 | . . . . . . . . . . . . . . . . 1 . . . . . Emergency Access Points 1 | . . . . . . . . . . . 1 . . . . . . . . . . Terminal Index 1 | . . . 1 . . . . . . . . . . . . . . . . . . Recycling Unit Index 1 | . . . 1 . . . . . . . . . . . . . . . . . . Alert Level 1 | . . . 1 . . . . . . . . . . . . . . . . . . Unreport Threat 4 | . 1 . 2 . . . . . . . . . . . . 1 . . . . . Hauler Manifests 3 | . 1 . . . . . 1 . . . . . . . . 1 . . . . . Registered Components 2 | . . . 1 . . . . . . . 1 . . . . . . . . . . Zone Layout 2 | . . . . . . . . . . . 1 . . . . . . 1 . . . Garrison Registry 2 | . . . . . . . . . . 1 . . . . . . 1 . . . . Patrol Navigation 1 | . . . . . . . . 1 . . . . . . . . . . . . . Fabricator Hacks 7 | . . . . . . . . . . . 2 . 3 . . 1 . 1 . . . Network Status 4 | . . . . . . . . . . . . . 2 . . 1 . 1 . . . Load Schematic 1 | . . . . . . . . . . . 1 . . . . . . . . . . Build 2 | . . . . . . . . . . . 1 . 1 . . . . . . . . Repair Station Hacks 10 | . . . 3 . . . 4 . . . 2 . . . . . . . . . 1 Scan Component 6 | . . . 2 . . . 2 . . . 1 . . . . . . . . . 1 Repair 4 | . . . 1 . . . 2 . . . 1 . . . . . . . . . . Recycling Unit Hacks 2 | . . . 1 . . . . . . . . . . . . . . 1 . . . Retrieve Components 2 | . . . 1 . . . . . . . . . . . . . . 1 . . . Scanalyzer 4 | . . . 4 . . . . . . . . . . . . . . . . . . Insert Component 2 | . . . 2 . . . . . . . . . . . . . . . . . . Analyze 2 | . . . 2 . . . . . . . . . . . . . . . . . . Garrison Access Hacks 8 | . . . . . . . 1 . 1 . 1 . 1 . . 2 . . 1 1 . Unlock Access 5 | . . . . . . . 1 . 1 . 1 . 1 . . 1 . . . . . Seal Access 3 | . . . . . . . . . . . . . . . . 1 . . 1 1 . Unauthorized Hacks 18 | . 5 . 5 . . . 4 . . . 3 . . . . 1 . . . . . Terminals 15 | . 3 . 4 . . . 4 . . . 3 . . . . 1 . . . . . Botnet 13 | . 3 . 3 . . . 3 . . . 3 . . . . 1 . . . . . Operators 2 | . . . 1 . . . 1 . . . . . . . . . . . . . . Fabricators . | . . . . . . . . . . . . . . . . . . . . . . Repair Stations . | . . . . . . . . . . . . . . . . . . . . . . Recycling Units 3 | . 2 . 1 . . . . . . . . . . . . . . . . . . Tunnel 3 | . 2 . 1 . . . . . . . . . . . . . . . . . . Scanalyzers . | . . . . . . . . . . . . . . . . . . . . . . Garrison Access . | . . . . . . . . . . . . . . . . . . . . . . Data Cores Recovered 4 | . 1 . 1 . . . . . . . 2 . . . . . . . . . . Used 1 | . . . . . . . . . . . 1 . . . . . . . . . . Hacking Detections 58 | . 8 . 12 . . . 4 2 1 1 8 2 5 1 . 3 2 4 2 1 2 Full Trace Events 4 | . . . 2 . . . 1 . . . 1 . . . . . . . . . . Feedback Events . | . . . . . . . . . . . . . . . . . . . . . . Feedback Blocked . | . . . . . . . . . . . . . . . . . . . . . . Robot Schematics Acquired . | . . . . . . . . . . . . . . . . . . . . . . Robots Built . | . . . . . . . . . . . . . . . . . . . . . . Authchips . | . . . . . . . . . . . . . . . . . . . . . . Time . | . . . . . . . . . . . . . . . . . . . . . . Total Robot Build Rating . | . . . . . . . . . . . . . . . . . . . . . . Part Schematics Acquired 3 | . 1 . 2 . . . . . . . . . . . . . . . . . . Parts Built 3 | . . . . . . . . . . . 1 . 2 . . . . . . . . Authchips . | . . . . . . . . . . . . . . . . . . . . . . Time 179 | . . . . . . . . . . . 51 . 128 . . . . . . . . Total Part Build Rating 17 | . . . . . . . . . . . 1 . 16 . . . . . . . . Parts Repaired 4 | . . . 1 . . . 2 . . . 1 . . . . . . . . . . Time 166 | . . . 36 . . . 92 . . . 38 . . . . . . . . . . Parts Recycled . | . . . . . . . . . . . . . . . . . . . . . . Recycled Matter . | . . . . . . . . . . . . . . . . . . . . . . Retrieved Matter . | . . . . . . . . . . . . . . . . . . . . . . Retrieved Components 10 | . . . 3 . . . . . . . . . . . . . . 7 . . . Parts Scanalyzed 2 | . . . 2 . . . . . . . . . . . . . . . . . . Part Schematics Acquired 2 | . . . 2 . . . . . . . . . . . . . . . . . . Parts Damaged . | . . . . . . . . . . . . . . . . . . . . . . Bothacking | -11 -10 -10 -9 -9 -9 -8 -8 -8 -7 -7 -7 -7 -6 -6 -6 -5 -5 -4 -3 -2 -1 ------------ Run | Yrd Mat Min Mat Min Exi Min Mat Gar Fac Gar Fac Gar Fac Gar Fac Fac Gar Fac Res Res Acc Used RIF Installer 5 | . . . . . . . . 1 . 1 . 2 . . . . 1 . . . . Code Merge 1 | . . . . . . . . . . . . 1 . . . . . . . . . Robot Detection 1 | . . . . . . . . . . . . 1 . . . . . . . . . Watcher Feeds 1 | . . . . . . . . . . 1 . . . . . . . . . . . Autooverride 1 | . . . . . . . . . . . . . . . . . 1 . . . . Robots Hacked 24 | . . . . . . . . . . . . . 9 . . . 8 5 2 . . Non-combat 12 | . . . . . . . . . . . . . 8 . . . . 2 2 . . Combat 12 | . . . . . . . . . . . . . 1 . . . 8 3 . . . Robot Hacks Applied 29 | . . . . . . . . . . . . . 12 . . . 8 7 2 . . parse_system 1 | . . . . . . . . . . . . . . . . . . 1 . . . no_distress 1 | . . . . . . . . . . . . . 1 . . . . . . . . find_chute 6 | . . . . . . . . . . . . . 5 . . . . 1 . . . drop_inventory 2 | . . . . . . . . . . . . . . . . . . . 2 . . purge_threat 1 | . . . . . . . . . . . . . 1 . . . . . . . . block_reporting 2 | . . . . . . . . . . . . . 2 . . . . . . . . map_route 1 | . . . . . . . . . . . . . 1 . . . . . . . . find_garrison 2 | . . . . . . . . . . . . . 1 . . . . 1 . . . amplify_resonance 2 | . . . . . . . . . . . . . . . . . . 2 . . . overwrite_iff 2 | . . . . . . . . . . . . . . . . . 2 . . . . formatsys_low 1 | . . . . . . . . . . . . . . . . . . 1 . . . formatsys_high 8 | . . . . . . . . . . . . . 1 . . . 6 1 . . . Relay Couplers Released 50 | . . . . . . . . . . 8 . 11 2 10 . . 16 . 3 . . Machine Destruction 50 | . . . . . . . . . . 8 . 11 2 10 . . 16 . 3 . . Attached 12 | . . . . . . . . . . . . 1 1 . 1 . 6 3 . . . Merged Code Value 24 | . . . . . . . . . . . . 24 . . . . . . . . . Fabnet Peak Effective % . | . . . . . . . . . . . . . . . . . . . . . . Robots Rewired 13 | . . . . . 4 . . . . . . . . . . . 9 . . . . Allies Hacked 2 | . . . . . . . . . . . . . 1 . . . . 1 . . . Hacks Repelled . | . . . . . . . . . . . . . . . . . . . . . . Allies | -11 -10 -10 -9 -9 -9 -8 -8 -8 -7 -7 -7 -7 -6 -6 -6 -5 -5 -4 -3 -2 -1 -------- Run | Yrd Mat Min Mat Min Exi Min Mat Gar Fac Gar Fac Gar Fac Gar Fac Fac Gar Fac Res Res Acc Total Allies 34 | . . 3 . 3 4 . . . . . . 2 1 2 . . 17 2 . . . Largest Group 14 | . . 3 1 3 5 5 2 . . . . 2 1 2 . . 14 11 . . . Highest-Rated Group 514 | . . 40 16 79 63 63 16 . . . . 124 55 67 . . 514 424 . . . Highest-Rated Ally 68 | . . 16 16 31 31 31 8 . . . . 62 55 38 . . 68 68 . . . Total Orders 25 | . . . . . . . . . . . . . . . . . 16 9 . . . STAY 12 | . . . . . . . . . . . . . . . . . 8 4 . . . FOLLOW 12 | . . . . . . . . . . . . . . . . . 8 4 . . . AID 1 | . . . . . . . . . . . . . . . . . . 1 . . . Ally Attacks 231 | . . 19 21 14 . 31 8 . . . . 27 10 7 . . 47 47 . . . Total Damage 5714 | . . 110 251 181 . 308 34 . . . . 892 366 275 . . 1198 2099 . . . Kills 48 | . . 7 3 2 . 2 . . . . . 10 2 2 . . 10 10 . . . Allies Corrupted 2 | . . . . . . . . . . . . . . . . . 1 1 . . . Allies Melted . | . . . . . . . . . . . . . . . . . . . . . . Intel | -11 -10 -10 -9 -9 -9 -8 -8 -8 -7 -7 -7 -7 -6 -6 -6 -5 -5 -4 -3 -2 -1 ------- Run | Yrd Mat Min Mat Min Exi Min Mat Gar Fac Gar Fac Gar Fac Gar Fac Fac Gar Fac Res Res Acc Active Infowar (turns) 28846 | 16 1339 622 1946 978 1345 547 1240 252 144 667 2259 2063 2887 1717 575 807 1799 2052 2565 1597 1429 Optics 2756 | . . . . . . . . . . . . . . . . . . . . 1327 1429 Sensors 9369 | . . . . . . . 1151 4 144 28 1399 . 1946 8 396 340 . 1213 1497 738 505 Terrain 522 | . . . . . . . . . . . . . . . . . . . . . 522 Seismic 9574 | 16 1339 622 1946 978 1345 547 89 248 . 639 128 1405 . 135 . . . . . . 137 T.N.C. 13600 | . . . . . . . . . . . 1195 2063 2887 1717 575 807 1799 2052 505 . . Jamming 3449 | . . . . . . . . . . . 216 . 738 348 398 . . 274 1053 422 . ECM 1 | . . . . . . . . . . . . . 1 . . . . . . . . Robot Analysis Total 3 | . 1 . 1 . . . 1 . . . . . . . . . . . . . . Derelict Logs Recovered 2 | . . 1 . 1 . . . . . . . . . . . . . . . . . Drone Launches . | . . . . . . . . . . . . . . . . . . . . . . Drone Recoveries . | . . . . . . . . . . . . . . . . . . . . . . Exploration | -11 -10 -10 -9 -9 -9 -8 -8 -8 -7 -7 -7 -7 -6 -6 -6 -5 -5 -4 -3 -2 -1 ------------- Run | Yrd Mat Min Mat Min Exi Min Mat Gar Fac Gar Fac Gar Fac Gar Fac Fac Gar Fac Res Res Acc Turns Passed 32190 | 152 1339 622 2303 1039 1349 588 2193 786 152 1534 2636 2063 2887 1717 575 807 1799 2052 2571 1597 1429 Spaces Moved 14106 | 67 782 480 1118 579 758 332 1058 391 90 682 1154 1117 1185 727 245 303 760 655 707 388 528 Core 1 | 1 . . . . . . . . . . . . . . . . . . . . . Treads 9674 | 63 125 . 615 579 758 332 1058 391 90 682 206 192 1185 670 82 75 760 480 561 364 406 Legs 288 | . . . . . . . . . . . . . . . . . . 7 146 13 122 Wheels 4143 | 3 657 480 503 . . . . . . . 948 925 . 57 163 228 . 168 . 11 . Hover . | . . . . . . . . . . . . . . . . . . . . . . Flight . | . . . . . . . . . . . . . . . . . . . . . . Fastest Speed 50 | 50 110 110 95 160 160 160 160 162 162 162 123 115 160 160 152 161 161 150 232 114 145 Average Speed 168 | 155 128 110 135 160 160 160 160 162 162 184 173 142 162 165 196 207 180 232 244 239 159 Slowest Speed 330 | 160 240 125 240 160 160 160 162 162 163 242 322 240 163 240 225 225 245 330 260 330 270 Overloaded Moves . | . . . . . . . . . . . . . . . . . . . . . . Propulsion Burnouts . | . . . . . . . . . . . . . . . . . . . . . . Robots Hopped . | . . . . . . . . . . . . . . . . . . . . . . Potential Cave-ins 2 | . . . . . . . . . . . . . 2 . . . . . . . . Cave-ins Triggered . | . . . . . . . . . . . . . . . . . . . . . . Exploration Rate (%) 47 | 6 97 69 91 99 91 63 51 50 3 50 36 60 41 67 7 10 56 29 27 20 17 Regions Visited 21 Branch Regions 4 Pre-discovered Areas 4 | . 2 . 1 1 . . . . . . . . . . . . . . . . . Known Exits Taken 6 | . . . . . . . 1 . 1 . 1 . 1 . . 1 . 1 . . . Unknown Exits Taken 10 | 1 1 1 1 1 1 1 . . . . . . . . 1 . . . 1 1 . Scrap Searched 4 | . . 1 . 1 . 2 . . . . . . . . . . . . . . . Spaces Dug 337 | . 7 2 36 48 . . 9 1 . 1 27 3 36 2 2 14 . 12 51 50 36 Terrain Destroyed 1132 | . 7 3 108 75 . . 60 23 . 1 55 5 106 15 65 20 77 206 79 137 90 Melee 52 | . . . 18 1 . . 9 1 . 1 1 3 8 2 2 6 . . . . . Projectile 276 | . 7 3 . . . . 5 . . . 39 2 54 6 1 11 1 45 28 43 31 AOE 804 | . . . 90 74 . . 46 22 . . 15 . 44 7 62 3 76 161 51 94 59 Terrain Rammed . | . . . . . . . . . . . . . . . . . . . . . . Walls Destroyed . | . . . . . . . . . . . . . . . . . . . . . . Machines Disabled . | . . . . . . . . . . . . . . . . . . . . . . Actions | -11 -10 -10 -9 -9 -9 -8 -8 -8 -7 -7 -7 -7 -6 -6 -6 -5 -5 -4 -3 -2 -1 --------- Run | Yrd Mat Min Mat Min Exi Min Mat Gar Fac Gar Fac Gar Fac Gar Fac Fac Gar Fac Res Res Acc Total 19883 | 94 986 534 1643 655 880 379 1399 475 94 869 1612 1472 1853 1106 300 415 1087 977 1288 855 910 Wait 2536 | . 104 24 243 34 72 41 171 24 . 17 225 115 365 190 17 30 112 109 308 219 116 Move 14087 | 66 781 479 1117 578 757 331 1057 390 89 681 1154 1116 1185 726 244 303 759 654 706 387 527 Hop . | . . . . . . . . . . . . . . . . . . . . . . Pick Up 269 | 7 15 2 16 3 1 . 10 . . 36 15 31 12 24 . 8 19 16 20 14 20 Fast Attach 153 | 7 1 . 9 . 5 . 15 2 4 5 11 9 15 6 1 8 6 15 8 7 19 Attach 127 | . . . 8 . . . 2 . . 1 5 8 7 11 7 2 10 11 12 22 21 Detach 39 | . . . 1 . 1 . 1 . . 2 1 1 3 4 . . 4 2 4 4 11 Swap 587 | 1 10 9 72 18 2 3 33 15 1 30 43 32 60 30 10 20 18 39 77 33 31 Drop 297 | . 13 5 37 3 6 . 22 2 . 31 28 34 21 25 2 5 13 15 14 8 13 Fire 1482 | 13 62 15 117 18 2 4 72 29 . 33 127 70 176 56 17 32 90 115 138 161 135 Melee 143 | . . . 23 1 14 . 16 4 . 22 3 21 8 23 2 6 . . . . . Ram . | . . . . . . . . . . . . . . . . . . . . . . Kick . | . . . . . . . . . . . . . . . . . . . . . . Crush 2 | . . . . . . . . . . . . . . . . 1 . . 1 . . Escape Stasis 31 | . . . . . . . . . . 2 . 26 . 3 . . . . . . . Rewire 80 | . . . . . 20 . . . . . . 2 1 . . . 56 1 . . . Trap 7 | . . . . . . . . . . . . 7 . . . . . . . . . Miscellaneous 43 | . . . . . . . . 9 . 9 . . . 8 . . . . . . 17 Route ------- -11/Scrapyard -10/Materials (discovered 4 exits: *Mat x2 / *Min / [*Sub]) -10/Mines -9/Materials (discovered 3 exits: *Mat x2 / [*Min]) -9/Mines (discovered 4 exits: *Mat x2 / *Exi / [*Zio]) -9/Exiles -8/Mines -8/Materials (discovered 2 exits: Sto / Gar) -8/Garrison -7/Factory -7/Garrison (discovered 3 exits: *Fac x3) -7/Factory (discovered 3 exits: [*Low x2] / Gar) -7/Garrison (discovered 3 exits: *Fac x2 / [*Fac]) -6/Factory (discovered 4 exits: *Fac x2 / [*Low] / Gar) -6/Garrison (discovered 2 exits: [*Fac x2]) -6/Factory -5/Factory (discovered 6 exits: *Fac / Upp x2 / Ext x2 / Gar) -5/Garrison (discovered 3 exits: *Fac x3) -4/Factory -3/Research -2/Research -1/Access To Epsilon Eridani History --------- Turn | Location | Event 14 | -11/Scrapyard | Discovered new exit (range 15) 153 | -11/Scrapyard | Entered Materials 154 | -10/Materials | Met a group of wandering Federalists 309 | -10/Materials | Build established: Mutant 355 | -10/Materials | Discovered new exit (range 10) 894 | -10/Materials | Discovered new exit (range 4) 926 | -10/Materials | Discovered new exit (range 15) 1170 | -10/Materials | Discovered new exit (range 3) 1492 | -10/Materials | Entered Mines 1499 | -10/Mines | Received a Rocket Launcher from a helpful Derelict 1550 | -10/Mines | Assisted by bots powering up and referring to "LRC-V3" 1569 | -10/Mines | Discovered new exit (range 11) 1723 | -10/Mines | Excavation squad dispatched 1723 | -10/Mines | A large section of the Mines collapsed 1784 | -10/Mines | Found the Drone Emporium 1791 | -10/Mines | Found Prototype Device 2114 | -10/Mines | Entered Materials 2114 | -9/Materials | Accompanied by 1 ally 2114 | -9/Materials | Evolved 2 slots: Propulsion x1, Utility x1 2115 | -9/Materials | Identified Decoy Drone Bay 2224 | -9/Materials | Build established: Scavenger-Mutant 2272 | -9/Materials | Repaired Broken Lgt. Treads 3241 | -9/Materials | Central database locked down 3270 | -9/Materials | Discovered new exit (range 9) 3776 | -9/Materials | Discovered new exit (range 16) 3947 | -9/Materials | Discovered new exit (range 11) 4272 | -9/Materials | Build established: Mutant 4417 | -9/Materials | Entered Mines 4589 | -9/Mines | Learned 2 Materials zone layouts 4610 | -9/Mines | Discovered new exit (range 5) 4612 | -9/Mines | Met a Derelict testing a Signal Generator 4913 | -9/Mines | Deemed a non-threat by the Exiles lab entrance 4970 | -9/Mines | Joined a pair of Derelicts in attacking an 0b10 outpost 5049 | -9/Mines | A Derelict revealed a hidden shortcut to a safe place 5074 | -9/Mines | Discovered new exit (range 7) 5137 | -9/Mines | Found a damaged Exp. Sensor Array with a note attached 5154 | -9/Mines | Found a hidden stash of uninstalled traps 5195 | -9/Mines | Found Prototype Device 5300 | -9/Mines | A weapon hastily lodged in a ceiling crevice suddenly fell to the ground 5448 | -9/Mines | Discovered new exit (range 5) 5456 | -9/Mines | Entered Exiles 5456 | -9/Exiles | Found Exiles lab destroyed 5456 | -9/Exiles | Accompanied by 2 allies 5486 | -9/Exiles | Led the pair of lost Derelicts to a safe place 5646 | -9/Exiles | Opened EX-Vault 5652 | -9/Exiles | Found Prototype Device 5652 | -9/Exiles | Identified PSU Rigger 6454 | -9/Exiles | Build established: Commander-Mutant 6777 | -9/Exiles | Discovered new exit (range 12) 6805 | -9/Exiles | Entered Mines 6805 | -8/Mines | Accompanied by 5 allies 7195 | -8/Mines | Discovered new exit (range 5) 7330 | -8/Mines | Build established: Mutant 7393 | -8/Mines | Entered Materials 7393 | -8/Materials | Accompanied by 2 allies 7393 | -8/Materials | Evolved 2 slots: Propulsion x1, Weapon x1 7394 | -8/Materials | Identified exit to Storage 7734 | -8/Materials | Identified Exp. Sensor Array 7843 | -8/Materials | Build established: Tank 8461 | -8/Materials | Identified exit to Garrison 8555 | -8/Materials | Repaired Enh. Autogun 8592 | -8/Materials | Repaired Imp. Treads 9178 | -8/Materials | Build established: Mutant 9586 | -8/Materials | Entered Garrison 9711 | -8/Garrison | Phase Generator disabled 9800 | -8/Garrison | Triggered checkpoint 9912 | -8/Garrison | Triggered checkpoint 10071 | -8/Garrison | Discovered new exit (range 10) 10199 | -8/Garrison | Installed Relay Interface Framework 10232 | -8/Garrison | Triggered checkpoint 10372 | -8/Garrison | Entered Factory 10372 | -7/Factory | Evolved 2 slots: Propulsion x1, Utility x1 10429 | -7/Factory | Identified exit to Garrison 10524 | -7/Factory | Entered Garrison 10534 | -7/Garrison | Discovered new exit (range 74) 10534 | -7/Garrison | Discovered new exit (range 51) 10534 | -7/Garrison | Discovered new exit (range 31) 10738 | -7/Garrison | Triggered checkpoint 10855 | -7/Garrison | Expanded RIF knowledge: Watcher Feeds 10900 | -7/Garrison | Triggered checkpoint 11047 | -7/Garrison | Garrison Relay disabled 11168 | -7/Garrison | Triggered checkpoint 11200 | -7/Garrison | Garrison Relay disabled 11245 | -7/Garrison | Build established: Scavenger-Gunner 11827 | -7/Garrison | Phase Generator disabled 12058 | -7/Garrison | Entered Factory 12185 | -7/Factory | Build established: Hauler-Mutant 12403 | -7/Factory | Repaired Shock Bomb Launcher 12971 | -7/Factory | Fabricated Huge Storage Unit (x1) 13561 | -7/Factory | Cargo convoy interrupted 13614 | -7/Factory | Destroyed 10 combat bots 13738 | -7/Factory | Lost 4 parts (1p3n) 13844 | -7/Factory | Discovered new exit (range 12) 13944 | -7/Factory | Discovered new exit (range 13) 14210 | -7/Factory | Build established: Tank 14280 | -7/Factory | System corruption reached 10% 14694 | -7/Factory | Identified exit to Garrison 14694 | -7/Factory | Entered Garrison 14702 | -7/Garrison | Triggered checkpoint 14753 | -7/Garrison | Discovered new exit (range 3) 14976 | -7/Garrison | Triggered checkpoint 15033 | -7/Garrison | Expanded RIF knowledge: Robot Detection 15065 | -7/Garrison | Garrison Relay disabled 15241 | -7/Garrison | Triggered checkpoint 15336 | -7/Garrison | Triggered checkpoint 15476 | -7/Garrison | Build established: Scavenger-Mutant 15529 | -7/Garrison | Discovered new exit (range 13) 15545 | -7/Garrison | Found embedded Infiltrators 15582 | -7/Garrison | Triggered checkpoint 15618 | -7/Garrison | Garrison Relay disabled 15913 | -7/Garrison | Discovered new exit (range 11) 15990 | -7/Garrison | Triggered checkpoint 16067 | -7/Garrison | Garrison Relay disabled 16093 | -7/Garrison | Build established: Mutant 16180 | -7/Garrison | Expanded RIF knowledge: Code Merge 16603 | -7/Garrison | System corruption reached 30% 16757 | -7/Garrison | Entered Factory 16757 | -6/Factory | Accompanied by 1 ally 16757 | -6/Factory | Evolved 2 slots: Utility x2 16844 | -6/Factory | Build established: Scavenger-Mutant 16845 | -6/Factory | Discovered new exit (range 10) 17022 | -6/Factory | Found Prototype Launcher 17022 | -6/Factory | Identified Scatter Rocket Array 17033 | -6/Factory | Found Scatter Rocket Array 17107 | -6/Factory | First assault squad dispatched 17147 | -6/Factory | Build established: Scavenger-Tank 17579 | -6/Factory | Discovered new exit (range 6) 17951 | -6/Factory | Fabricated Nova Cannon (x2) 19466 | -6/Factory | Discovered new exit (range 7) 19525 | -6/Factory | Found Prototype Processor 19525 | -6/Factory | Identified Exp. Targeting Computer 19528 | -6/Factory | Found Exp. Targeting Computer 19644 | -6/Factory | Identified exit to Garrison 19644 | -6/Factory | Entered Garrison 19698 | -6/Garrison | Triggered checkpoint 19704 | -6/Garrison | Garrison Relay disabled 19989 | -6/Garrison | Triggered checkpoint 20093 | -6/Garrison | Triggered checkpoint 20190 | -6/Garrison | Triggered checkpoint 20344 | -6/Garrison | Garrison Relay disabled 20440 | -6/Garrison | Discovered new exit (range 9) 20511 | -6/Garrison | Triggered checkpoint 20610 | -6/Garrison | Build established: Scavenger-Mutant 20619 | -6/Garrison | Triggered checkpoint 20856 | -6/Garrison | Discovered new exit (range 12) 20890 | -6/Garrison | Rescued a captive Derelict 20890 | -6/Garrison | Rescued a captive Derelict 21217 | -6/Garrison | Garrison Relay disabled 21361 | -6/Garrison | Entered Factory 21711 | -6/Factory | First assault squad dispatched 21865 | -6/Factory | Lost 3 parts (1p1u1w) 21885 | -6/Factory | Destroyed 13 combat bots 21922 | -6/Factory | Discovered new exit (range 4) 21936 | -6/Factory | Entered another Factory area 21936 | -5/Factory | Evolved 2 slots: Power x1, Propulsion x1 21965 | -5/Factory | Identified exit to Upper Caves 21965 | -5/Factory | Identified exit to Extension 22340 | -5/Factory | Discovered new exit (range 5) 22478 | -5/Factory | Build established: Mutant 22653 | -5/Factory | Garrison activated, responded to threat 22684 | -5/Factory | Lost 3 parts (1n2w) 22743 | -5/Factory | Identified exit to Garrison 22743 | -5/Factory | Entered Garrison 22807 | -5/Garrison | Triggered checkpoint 22890 | -5/Garrison | Garrison Relay disabled 23041 | -5/Garrison | Triggered checkpoint 23074 | -5/Garrison | Triggered checkpoint 23162 | -5/Garrison | Garrison Relay disabled 23195 | -5/Garrison | Build established: Bothacker-Tank 23207 | -5/Garrison | Triggered checkpoint 23242 | -5/Garrison | Discovered new exit (range 12) 23257 | -5/Garrison | Triggered checkpoint 23279 | -5/Garrison | Triggered checkpoint 23374 | -5/Garrison | Triggered checkpoint 23460 | -5/Garrison | Triggered checkpoint 23563 | -5/Garrison | Spotted B-86 Titan 23590 | -5/Garrison | Discovered new exit (range 70) 23590 | -5/Garrison | Discovered new exit (range 26) 23590 | -5/Garrison | Discovered new exit (range 32) 23702 | -5/Garrison | Garrison Relay disabled 23932 | -5/Garrison | Expanded RIF knowledge: Autooverride 24540 | -5/Garrison | Build established: Commander-Gunner 24542 | -5/Garrison | Entered Factory 24542 | -4/Factory | Accompanied by 11 allies 24542 | -4/Factory | Evolved 2 slots: Utility x2 24749 | -4/Factory | Lost 3 allies 24792 | -4/Factory | First assault squad dispatched 24993 | -4/Factory | Lost 4 allies 25064 | -4/Factory | P-70 Sage assimilated allied Sentinel 6a 25464 | -4/Factory | Build established: Scavenger-Skirmisher 25877 | -4/Factory | Found Prototype Hackware 26287 | -4/Factory | Lost 7 parts (1p2n2u2w) 26524 | -4/Factory | Discovered new exit (range 13) 26580 | -4/Factory | Identified exit to Research 26594 | -4/Factory | Entered Research 26594 | -3/Research | Evolved 2 slots: Utility x2 26656 | -3/Research | Identified Exp. System Shield 26939 | -3/Research | Build established: Hacker-Tank 27431 | -3/Research | System corruption reached 10% 27527 | -3/Research | Found Centrium Heavy Armor Plating 27546 | -3/Research | Found Centrium Heavy Armor Plating 27844 | -3/Research | First assault squad dispatched 28051 | -3/Research | Destroyed 9 combat bots 28831 | -3/Research | System corruption reached 30% 28963 | -3/Research | Discovered new exit (range 32) 29089 | -3/Research | Found Com. Tesla Bomb Launcher 29093 | -3/Research | Found Faulty Com. Tesla Bomb Launcher 29097 | -3/Research | Found Com. Tesla Bomb Launcher 29165 | -3/Research | Entered another Research area 29165 | -2/Research | Evolved 2 slots: Power x1, Utility x1 29243 | -2/Research | Garrison activated, responded to threat 29415 | -2/Research | First assault squad dispatched 29424 | -2/Research | Build established: Hacker-Mutant 30232 | -2/Research | Build established: Scavenger-Tank 30348 | -2/Research | Destroyed 8 combat bots 30348 | -2/Research | Lost 3 parts (1n2w) 30503 | -2/Research | Destroyed 8 combat bots 30505 | -2/Research | System corruption reached 10% 30608 | -2/Research | High security lockdown imminent 30688 | -2/Research | High security lockdown engaged 30698 | -2/Research | Discovered new exit (range 5) 30727 | -2/Research | System corruption reached 30% 30743 | -2/Research | Destroyed 10 combat bots 30762 | -2/Research | Entered Access 30762 | -1/Access | Evolved 2 slots: Propulsion x1, Utility x1 30790 | -1/Access | Lost 15 parts (2p4n4u5w) 31262 | -1/Access | First assault squad dispatched 31353 | -1/Access | Destroyed 8 combat bots 31429 | -1/Access | Lost 3 parts (1p1n1u) 31807 | -1/Access | System corruption reached 10% 31828 | -1/Access | Lost 3 parts (3u) 31881 | -1/Access | High security lockdown imminent 31885 | -1/Access | Lost 4 parts (1n3u) 31907 | -1/Access | Destroyed 13 combat bots 31960 | -1/Access | Destroyed 8 combat bots 31961 | -1/Access | High security lockdown engaged 32002 | -1/Access | Destroyed 7 combat bots 32055 | -1/Access | Destroyed 11 combat bots 32059 | -1/Access | Lost 3 parts (1n1u1w) 32185 | -1/Access | Discovered new exit (range 4) 32191 | *** | Escaped! Last Messages --------------- 32181_ U-05 Engineer lays Concrete. 32182_ Dismantling Main Access Shell with Plasma Cutter. 32182_ C-30 ARC bursts open, deploying its payload. 32182_ G-73 Enforcer unfolds itself. 32182_ I-47 Archangel unfolds itself. 32183_ U-05 Engineer lays Concrete. 32183_ K-01 Serf collects debris. 32184_ K-01 Serf destroyed. 32184_ U-05 Engineer lays Concrete. 32185_ HERF Cannon destroyed. 32185_ Main Access Shell breached. 32185_ EXIT=FOUND 32185_ U-05 Engineer lays Concrete. 32186_ Mic. Antimatter Reactor destroyed. 32186_ U-05 Engineer lays Concrete. 32187_ K-01 Serf collects debris. [Achievement: Rambo] [Achievement: Victory By Combat] Map ----- +----------------------------------------------------+ | ?????????????????????????????????????????????????? | | ?????????????????????????????????????????????????? | | ?????????????????????????????????????????????????? | | ?????????????????????????????????????????????????? | | ?????????????????????????????????????????????????? | | ?????????????????????????????????????????????????? | | ?????????????????????????????????????????????????? | | ?????????????????????????????????????????????????? | | ?????????????????????????????????????????????????? | | ?????????????????????????????????????????????????? | | ?????????????????????????????????????????????????? | | ?????????????????????????????????????????????????? | | ?????????????????????????????????????????????????? | | ?????????????????????????????????????????????????? | | ?????????????????????????????????????????????????? | | ?????????????????????????????????????????????????? | | ?????????????????????????????????????????????????? | | ?????????????????????????????????????????????????? | | ?????????????????????????????????????????????????? | | ?????????????????????????????????????????????????? | | ??#????????????????#""???????????????????????????? | | ### #????????# ???????????????????????????? | | #????????# """"""?????????????????????? | | #??????????????# " "?????????????????????? | | ###/#########??????# " "" "?????????????????????? | | ? #??????# " "@ "?????????????????????? | | ? #??????# " "??#??????????????????? | | ?? #??????# "" """ #??????????????????? | | ?? ??????# #??????????????????? | | ??? ???????# #??????????????????? | | ??? !! ???????"" """""""??????????????????? | | ???? !=????????#""=% #??????????????????? | | ???? !=????????#"" ! #??????????????????? | | ????? ?????????#" #??????????????????? | | ????? ?????????#T g #??????????????????? | | ?????? ??????????#""i #??????????????????? | | ?????? ??????????#"!%[ #??????????????????? | | #######+############" = ###????????????????? | | k%" ??????? | | ?????? | | ##############+####################+######???????? | | ######???????? ????????????????????????????????? | | #????????? #???????????????????????????????? | | #?????????? #???????????????????????????????? | | == #???????????#???????????????????????????????? | | == #???????????????????????????????????????????? | | == #???????????????????????????????????????????? | | [#???????????????????????????????????????????? | | #???????????????????????????????????????????? | | = #???????????????????????????????????????????? | +----------------------------------------------------+ Best States ------------- Heat Dissipation 71 Coolant Potential 80 Energy Generation 59 Energy Capacity 490 Matter Stores 300 Matter Capacity 300 Sight Range 22 Robot Scan Range 20 Terrain Scan Range 20 Terrain Scan Density 210 Jamming Range 14 Armor Coverage 1810 Resistance: KI 30 Evasion (%) 50 Targeting Accuracy 12 Core Analysis 9 Recoil Reduction 6 Offensive Hacking 11 Defensive Hacking 16 Relay Coupler Types 1 Relay Coupler Value 46 Item Schematics ----------------- Huge Storage Unit | -10/Materials | Hacked Hacking Suite | -9/Materials | Scanalyzed Transport Network Coupler | -9/Materials | Scanalyzed Robot Schematics ------------------ None Fabricated ------------ Huge Storage Unit | x1 | -7/Factory Nova Cannon | x2 | -6/Factory | Preloaded Repaired ---------- Lgt. Treads | 31% | -9/Materials | Broken Enh. Autogun | 3% | -8/Materials Imp. Treads | 9% | -8/Materials Shock Bomb Launcher | 37% | -7/Factory Alien Tech Used ----------------- None Achievements -------------- Packrat Rambo Shocking Conclusion Victory By Combat Challenges ------------ None Game ------ Seed ForcePhasingShielding Manual? 0 Play Time 05:33:29 Cumulative 151.2 hours Start 2025.09.16 @ 23:56:23 End 2025.09.20 @ 21:57:54 Sessions 8 Manual Loads 0 Difficulty Rogue Special Mode None Game No. 51 Rogue 45 Adventurer 0 Explorer 6 Win Type 0 Total 8 Types 5/0/2/1/0/0/0/0/0/0 Lore% 73 Gallery% 62 Achievement% 61 Wizard Run 0 Options --------- Layout 1 ASCII 0 Keyboard 0 Movement Mouse Keybinds 0 Fullscreen 2 Font 24/Smallcaps Map View 50x35 Zoom Use 0% Tactical HUD 1 Map Filters NONE Filters NONE Steam 1 RUN: 396c5ab9-f05c-4bb8-98dc-d6a0dad9323d